bitfinex/quotes_BTCUSD_20250213
["timestamp","ask_amount","ask_price","bid_price","bid_amount"]
[1739454316738,0.47907397,96051.0,96050.0,0.0001066]
[1739454318004,0.48407397,96051.0,96050.0,0.0001066]
[1739454318420,0.94163097,96051.0,96050.0,0.0001066]
[1739454318831,0.79666324,96051.0,96050.0,0.0001066]
[1739454319045,0.49115204,96051.0,96050.0,0.0001066]
[1739454319258,0.50841324,96051.0,96050.0,0.0001066]
[1739454319672,0.63889786,96051.0,96050.0,0.0001066]
[1739454320125,0.51415204,96051.0,96050.0,0.0001066]
[1739454320339,0.55714084,96051.0,96050.0,0.0001066]
[1739454320492,0.51187964,96051.0,96050.0,0.0001066]
[1739454320902,0.15,96046.0,96021.0,0.0143634]
[1739454321103,0.15,96048.0,96040.0,0.08322194]
[1739454321303,0.15,96048.0,96031.0,0.00053217]
[1739454321503,0.14522466,96041.0,96031.0,0.00053217]
[1739454324134,0.156197,96032.0,96031.0,0.00053217]
[1739454324339,0.02077669,96036.0,96031.0,0.00053217]
[1739454324546,0.03088407,96032.0,96031.0,0.15673117]
[1739454324760,0.03088407,96032.0,96031.0,0.28193117]
[1739454325034,0.03088407,96032.0,96031.0,0.38843482]
[1739454325245,0.03088407,96032.0,96031.0,0.38443482]
[1739454325456,0.03088407,96032.0,96031.0,0.12573217]
[1739454325672,0.03088407,96032.0,96031.0,0.12973217]
[1739454325876,0.03088407,96032.0,96031.0,0.28193117]
[1739454326090,0.156186,96039.0,96031.0,0.28193117]
[1739454326299,0.23911307,96049.0,96031.0,0.13073217]
[1739454326300,0.157197,96032.0,96031.0,0.13073217]
[1739454326503,0.157197,96032.0,96031.0,0.00553217]
[1739454326732,0.157197,96032.0,96031.0,0.00453217]
[1739454327126,0.158197,96032.0,96031.0,0.00753217]
[1739454327474,0.18708107,96032.0,96031.0,0.00063897]
[1739454327928,0.18808107,96032.0,96031.0,0.00863897]
[1739454328130,0.18808107,96032.0,96031.0,0.00263897]
[1739454328570,0.18808107,96032.0,96031.0,0.00563897]
[1739454328775,0.29058472,96032.0,96031.0,0.00563897]
[1739454328980,0.54212039,96032.0,96031.0,0.00563897]
[1739454329180,0.46358472,96032.0,96031.0,0.00563897]
[1739454329333,0.46258472,96032.0,96031.0,0.00263897]
[1739454329555,0.46258472,96032.0,96031.0,0.00063897]
[1739454329989,0.46258472,96032.0,96031.0,0.00263897]
[1739454330341,0.46258472,96032.0,96031.0,0.00063897]
[1739454330541,0.46258472,96032.0,96031.0,0.00363897]
[1739454330846,0.57208837,96032.0,96031.0,0.00063897]
[1739454331072,0.62118837,96032.0,96031.0,0.00063897]
[1739454331229,0.62018837,96032.0,96031.0,0.00163897]
[1739454331437,0.62018837,96032.0,96020.0,0.0001066]
[1739454331438,0.15,96021.0,96020.0,0.0001066]
[1739454331669,0.156232,96011.0,96010.0,0.08322194]
[1739454331882,0.25873565,96011.0,96010.0,0.08322194]
[1739454332122,0.25873565,96011.0,95978.0,0.0459]
[1739454332123,0.306248,96001.0,95978.0,0.0459]
[1739454332329,0.40875165,96001.0,96000.0,0.00017195]
[1739454332930,0.43963572,96001.0,96000.0,0.00017195]
[1739454333884,0.46038502,96001.0,96000.0,0.00017195]
[1739454334094,0.46638502,96001.0,96000.0,0.00017195]
[1739454334517,0.44890008,96001.0,96000.0,0.00017195]
[1739454334825,0.45890008,96001.0,96000.0,0.00017195]
[1739454335295,0.45490008,96001.0,96000.0,0.00017195]
[1739454335488,0.45790008,96001.0,96000.0,0.00017195]
[1739454335682,0.45490008,96001.0,96000.0,0.00017195]
[1739454336134,0.44890008,96001.0,96000.0,0.00017195]
[1739454336331,0.45490008,96001.0,96000.0,0.00017195]
[1739454336913,0.44890008,96001.0,96000.0,0.00017195]
[1739454337239,0.45790008,96001.0,96000.0,0.00017195]
[1739454337410,0.18464713,96001.0,96000.0,0.00017195]
[1739454337640,0.02839913,96001.0,96000.0,0.15642195]
[1739454337865,0.02939913,96001.0,96000.0,0.15642195]
[1739454338067,0.02539913,96001.0,96000.0,0.15642195]
[1739454338273,0.02039913,96001.0,96000.0,0.15642195]
[1739454338456,0.02039913,96001.0,96000.0,0.2589256]
[1739454338657,0.01939913,96001.0,96000.0,0.2589256]
[1739454339220,0.02039913,96001.0,96000.0,0.2589256]
[1739454339556,0.005,96001.0,96000.0,0.2589256]
[1739454339988,0.001,96001.0,96000.0,0.2590324]
[1739454340231,0.2188805,96040.0,96000.0,0.1027824]
[1739454340451,0.156215,96021.0,96001.0,0.31187613]
[1739454340584,0.208266,96031.0,96001.0,0.10250365]
[1739454340792,0.156246,96003.0,96000.0,0.00127875]
[1739454340989,0.156248,96001.0,96000.0,0.00027875]
[1739454341198,0.15,96029.0,96000.0,0.00027875]
[1739454341396,0.10250365,96028.0,96000.0,0.00027875]
[1739454341618,0.001,96021.0,96000.0,0.00027875]
[1739454341821,0.156247,96002.0,96000.0,0.00027875]
[1739454342515,0.156243,96004.0,96000.0,0.00027875]
[1739454342730,0.208309,96011.0,96000.0,0.00027875]
[1739454342936,0.02047687,96021.0,96000.0,0.00027875]
[1739454342937,0.156224,96016.0,96000.0,0.00027875]
[1739454343138,0.20827,96029.0,96001.0,0.10354524]
[1739454343340,0.00022428,96032.0,96001.0,0.10354524]
[1739454343541,0.001,96021.0,96001.0,0.10354524]
[1739454343774,0.156219,96019.0,96011.0,0.156232]
[1739454343997,0.156219,96019.0,96000.0,0.00027875]
[1739454343998,0.001,96011.0,96010.0,0.156233]
[1739454344201,0.00022428,96032.0,96031.0,0.156199]
[1739454344403,0.00022428,96032.0,96031.0,0.33630265]
[1739454346943,0.0871768,96113.0,96031.0,0.33630265]
[1739454346944,0.208152,96084.0,96055.0,0.15616]
[1739454347123,0.0290958,96094.0,96055.0,0.34156365]
[1739454347328,0.00035601,96056.0,96055.0,0.34156365]
[1739454347529,0.00035601,96056.0,96055.0,0.38816365]
[1739454347657,0.00035601,96056.0,96055.0,0.42037027]
[1739454348084,0.00135601,96056.0,96055.0,0.42037027]
[1739454348285,0.00035601,96056.0,96055.0,0.38916365]
[1739454349489,0.00035601,96056.0,96055.0,0.23300365]
[1739454349691,0.00135601,96056.0,96055.0,0.23200365]
[1739454350098,0.00035601,96056.0,96055.0,0.23200365]
[1739454350342,0.00135601,96056.0,96055.0,0.23400365]
[1739454350556,0.00235601,96056.0,96055.0,0.23400365]
[1739454350915,0.00135601,96056.0,96055.0,0.23300365]
[1739454351129,0.00135601,96056.0,96055.0,0.0839]
[1739454351336,0.00135601,96056.0,96055.0,0.001]
[1739454351742,0.00235601,96056.0,96055.0,0.002]
[1739454352897,0.00235601,96056.0,96055.0,0.001]
[1739454352898,0.00135601,96056.0,96055.0,0.001]
[1739454353124,0.00035601,96056.0,96044.0,0.08322194]
[1739454353357,0.00235601,96056.0,96055.0,0.001]
[1739454353551,0.00135601,96056.0,96055.0,0.001]
[1739454353758,0.00035601,96056.0,96055.0,0.25866365]
[1739454353965,0.00135601,96056.0,96055.0,0.25866365]
[1739454354186,0.00135601,96056.0,96055.0,0.33696365]
[1739454354187,0.00035601,96056.0,96055.0,0.33696365]
[1739454354392,0.00035601,96056.0,96055.0,0.48696365]
[1739454354593,0.00135601,96056.0,96055.0,0.55856365]
[1739454354806,0.00035601,96056.0,96055.0,0.55856365]
[1739454355862,0.00035601,96056.0,96055.0,0.37940365]
[1739454356062,0.00135601,96056.0,96055.0,0.38440365]
[1739454356267,0.00235601,96056.0,96055.0,0.38440365]
[1739454356903,0.00335601,96056.0,96055.0,0.38440365]
[1739454357108,0.00035601,96056.0,96055.0,0.37940365]
[1739454357318,0.00235601,96056.0,96055.0,0.23440365]
[1739454357727,0.00135601,96056.0,96055.0,0.23440365]
[1739454357962,0.00135601,96056.0,96055.0,0.22940365]
[1739454358167,0.00135601,96056.0,96055.0,0.38556365]
[1739454358387,0.00135601,96056.0,96055.0,0.22940365]
[1739454358774,0.15751401,96056.0,96055.0,0.22940365]
[1739454359125,0.00035601,96056.0,96055.0,0.23440365]
[1739454359333,0.00135601,96056.0,96055.0,0.39056365]
[1739454359562,0.00235601,96056.0,96055.0,0.39056365]
[1739454359760,0.00135601,96056.0,96031.0,0.0001065]
[1739454359958,0.00135601,96056.0,96055.0,0.005]
[1739454360160,0.15851401,96056.0,96055.0,0.005]
[1739454360364,0.15751401,96056.0,96055.0,0.005]
[1739454360578,0.27583999,96056.0,96055.0,0.005]
[1739454360782,0.27583999,96056.0,96031.0,0.0001065]
[1739454360783,0.156197,96032.0,96031.0,0.0001065]
[1739454361231,0.208217,96054.0,96031.0,0.0001065]
[1739454361521,0.156197,96032.0,96031.0,0.0001065]
[1739454362180,0.306197,96032.0,96031.0,0.0001065]
[1739454362584,0.307197,96032.0,96031.0,0.0051065]
[1739454363231,0.306197,96032.0,96031.0,0.0001065]
[1739454363442,0.41470065,96032.0,96031.0,0.0001065]
[1739454363660,0.41670065,96032.0,96031.0,0.0001065]
[1739454363860,0.77219365,96032.0,96031.0,0.0001065]
[1739454364069,0.79519365,96032.0,96031.0,5e-07]
[1739454364281,0.58781217,96032.0,96031.0,5e-07]
[1739454364487,0.58781217,96032.0,96011.0,0.08322194]
[1739454364488,0.30623,96012.0,96011.0,4.4e-07]
[1739454364693,0.40873365,96012.0,96011.0,4.4e-07]
[1739454364893,0.306248,96001.0,96000.0,0.0001468]
[1739454365119,0.40875165,96001.0,96000.0,0.0001468]
[1739454365319,0.306248,96001.0,96000.0,0.0001468]
[1739454365769,0.306248,96001.0,96000.0,0.00027875]
[1739454365882,0.156248,96001.0,96000.0,0.00027875]
[1739454366600,0.157248,96001.0,96000.0,0.00027875]
[1739454366804,0.157248,96001.0,96000.0,0.00427875]
[1739454367285,0.25975165,96001.0,96000.0,0.00427875]
[1739454369459,0.40975165,96001.0,96000.0,0.00427875]
[1739454369665,0.56118177,96001.0,96000.0,0.00427875]
[1739454369871,0.92234477,96001.0,96000.0,0.00427875]
[1739454370088,0.306263,95992.0,95952.0,0.16282194]
[1739454370288,0.40876665,95992.0,95952.0,0.16282194]
[1739454370497,0.25876665,95992.0,95952.0,0.16282194]
[1739454370734,0.156263,95992.0,95981.0,0.0768]
[1739454370949,0.156263,95992.0,95975.0,0.0486]
[1739454371164,0.156263,95992.0,95974.0,0.0001066]
[1739454372031,0.27810423,95992.0,95974.0,0.0001066]
[1739454372872,0.28310423,95992.0,95974.0,0.0001066]
[1739454373265,0.17560058,95992.0,95974.0,0.0001066]
[1739454373535,0.18460058,95992.0,95974.0,0.0001066]
[1739454373744,0.18260058,95992.0,95974.0,0.0001066]
[1739454373951,0.02633758,95992.0,95974.0,0.0001066]
[1739454374152,0.02133758,95992.0,95988.0,0.208359]
[1739454374353,0.02633758,95992.0,95989.0,0.156266]
[1739454374562,0.02633758,95992.0,95983.0,0.208368]
[1739454374773,0.02633758,95992.0,95986.0,0.208361]
[1739454374992,0.02633758,95992.0,95991.0,0.38126765]
[1739454375417,0.007,95992.0,95991.0,0.38126765]
[1739454375630,0.007,95992.0,95991.0,0.22500365]
[1739454375897,0.002,95992.0,95991.0,0.22500365]
[1739454376103,0.00013164,96001.0,95999.0,0.15625]
[1739454376304,0.00013164,96001.0,96000.0,0.10354508]
[1739454376522,0.00013164,96001.0,96000.0,0.10250365]
[1739454377372,0.00013164,96001.0,95991.0,0.1236065]
[1739454377373,0.20946264,96001.0,95991.0,0.1236065]
[1739454377587,0.20946264,96001.0,95992.0,0.10250365]
[1739454377799,0.156259,95994.0,95992.0,0.10250365]
[1739454379033,0.208342,95996.0,95991.0,0.0005065]
[1739454379237,0.156263,95992.0,95991.0,0.0005065]
[1739454380259,0.156263,95992.0,95991.0,0.0015065]
[1739454380679,0.156263,95992.0,95991.0,0.0005065]
[1739454380886,0.157263,95992.0,95991.0,0.0005065]
[1739454382809,0.157263,95992.0,95991.0,0.0015065]
[1739454383027,0.25976665,95992.0,95991.0,0.0015065]
[1739454383437,0.25976665,95992.0,95991.0,0.0005065]
[1739454383652,0.25876665,95992.0,95991.0,0.0005065]
[1739454384666,0.26476665,95992.0,95991.0,0.0005065]
[1739454385914,0.25976665,95992.0,95991.0,0.0005065]
[1739454386136,0.26576665,95992.0,95991.0,0.0005065]
[1739454386970,0.18264106,95992.0,95991.0,0.0005065]
[1739454387287,0.18164106,95992.0,95991.0,0.0005065]
[1739454387470,0.17564106,95992.0,95991.0,0.0005065]
[1739454387685,0.18164106,95992.0,95991.0,0.0005065]
[1739454387890,0.162263,95992.0,95991.0,0.0005065]
[1739454388463,0.26476665,95992.0,95991.0,0.0005065]
[1739454389021,0.40976665,95992.0,95991.0,0.0005065]
[1739454389228,0.41576665,95992.0,95991.0,0.0005065]
[1739454389431,0.157,95992.0,95991.0,0.0005065]
[1739454389633,0.314263,95992.0,95991.0,0.0005065]
[1739454389837,0.313263,95992.0,95991.0,0.0005065]
[1739454390048,0.314263,95992.0,95991.0,0.0005065]
[1739454390457,0.008,95992.0,95974.0,0.0001066]
[1739454390657,0.15629,95975.0,95974.0,0.0001066]
[1739454391249,0.17575209,95975.0,95974.0,0.0001066]
[1739454391827,0.18960675,95975.0,95974.0,0.0001066]
[1739454393872,0.18960675,95975.0,95974.0,0.0011066]
[1739454394071,0.17014466,95975.0,95974.0,0.0011066]
[1739454395487,0.17014466,95975.0,95974.0,0.0001066]
[1739454395902,0.17014466,95975.0,95974.0,0.0011066]
[1739454396301,0.17014466,95975.0,95974.0,6e-07]
[1739454396504,0.32014466,95975.0,95974.0,6e-07]
[1739454396708,0.15631,95963.0,95962.0,7e-05]
[1739454398013,0.15631,95963.0,95962.0,0.0005101]
[1739454398219,0.17578589,95963.0,95962.0,0.0005101]
[1739454399029,0.18278589,95963.0,95962.0,0.0005101]
[1739454399438,0.17578589,95963.0,95962.0,0.0005101]
[1739454399813,0.28028954,95963.0,95962.0,0.0005101]
[1739454400261,0.27828954,95963.0,95962.0,0.0005101]
[1739454400676,0.28028954,95963.0,95962.0,0.0005101]
[1739454401493,0.26081365,95963.0,95962.0,0.0025101]
[1739454401739,0.15831,95963.0,95962.0,0.0005101]
[1739454401953,0.15631,95963.0,95962.0,0.0015101]
[1739454402222,0.41181365,95963.0,95962.0,0.0005101]
[1739454402427,0.54071365,95963.0,95962.0,1e-07]
[1739454402635,0.53971365,95963.0,95962.0,1e-07]
[1739454402845,0.56271365,95963.0,95962.0,1e-07]
[1739454403048,0.57071365,95963.0,95962.0,1e-07]
[1739454403457,0.56471365,95963.0,95962.0,1e-07]
[1739454403661,0.57071365,95963.0,95962.0,1e-07]
[1739454404312,0.56671365,95963.0,95962.0,1e-07]
[1739454404718,0.56771365,95963.0,95962.0,1e-07]
[1739454406766,0.63016365,95963.0,95962.0,1e-07]
[1739454406972,0.46411365,95963.0,95962.0,1e-07]
[1739454407178,0.41581365,95963.0,95962.0,1e-07]
[1739454407625,0.16331,95963.0,95962.0,1e-07]
[1739454409479,0.15731,95963.0,95962.0,1e-07]
[1739454409883,0.16031,95963.0,95962.0,1e-07]
[1739454410681,0.15931,95963.0,95962.0,1e-07]
[1739454410886,0.15931,95963.0,95962.0,0.0010001]
[1739454411299,0.15931,95963.0,95962.0,1e-07]
[1739454411502,0.15931,95963.0,95962.0,0.0010001]
[1739454411828,0.15631,95963.0,95962.0,0.0010001]
[1739454412030,0.15631,95963.0,95962.0,0.0030001]
[1739454412229,0.208405,95967.0,95962.0,0.0030001]
[1739454412432,0.15931,95963.0,95962.0,0.0031067]
[1739454412844,0.15631,95963.0,95962.0,0.0031067]
[1739454413039,0.156308,95964.0,95963.0,0.0763]
[1739454413841,0.15631,95963.0,95962.0,0.0041067]
[1739454414225,0.15631,95963.0,95962.0,0.0011067]
[1739454414587,0.15631,95963.0,95962.0,0.0001067]
[1739454414785,0.156308,95964.0,95963.0,0.001]
[1739454415289,0.01358147,95975.0,95962.0,0.0021067]
[1739454415491,0.01358147,95975.0,95962.0,0.10461035]
[1739454415640,0.156305,95966.0,95962.0,0.10561035]
[1739454415843,0.16967199,95979.0,95962.0,0.10561035]
[1739454416013,0.15631,95963.0,95962.0,0.10461035]
[1739454416227,0.15631,95963.0,95962.0,0.0021067]
[1739454416872,0.15631,95963.0,95962.0,0.0001067]
[1739454417642,0.15731,95963.0,95962.0,0.0061067]
[1739454418059,0.17678628,95963.0,95962.0,0.0091067]
[1739454418457,0.02047628,95963.0,95962.0,0.11161035]
[1739454419119,0.02047628,95963.0,95962.0,0.35012135]
[1739454419333,0.02047628,95963.0,95962.0,0.19381035]
[1739454419714,0.17678628,95963.0,95962.0,0.19381035]
[1739454419873,0.17578628,95963.0,95962.0,0.18781035]
[1739454420081,0.01947628,95963.0,95962.0,0.18781035]
[1739454420289,0.01947628,95963.0,95962.0,0.35112135]
[1739454420489,0.01947628,95963.0,95962.0,0.39072135]
[1739454420815,0.01947628,95963.0,95962.0,0.39272135]
[1739454421017,0.01349526,95984.0,95962.0,0.23641035]
[1739454421178,0.208393,95973.0,95963.0,0.10250365]
[1739454421388,0.208402,95968.0,95963.0,0.10250365]
[1739454421595,0.156298,95971.0,95963.0,0.10250365]
[1739454421800,0.156306,95966.0,95963.0,0.10250365]
[1739454422048,0.208359,95988.0,95963.0,0.10250365]
[1739454422248,0.156303,95968.0,95963.0,0.10250365]
[1739454422597,0.01947628,95970.0,95963.0,0.10250365]
[1739454422774,0.01947628,95970.0,95969.0,0.1563]
[1739454422995,0.01947628,95970.0,95969.0,0.25880365]
[1739454423909,0.01947628,95970.0,95969.0,0.26380365]
[1739454424213,0.01947628,95970.0,95969.0,0.34600365]
[1739454424438,0.01947628,95970.0,95969.0,0.54350365]
[1739454424636,0.003,95988.0,95969.0,0.54350365]
[1739454424637,0.003,95988.0,95987.0,0.156271]
[1739454424826,0.208291,96020.0,95990.0,0.156266]
[1739454425128,0.01323078,96018.0,95990.0,0.2598111]
[1739454425335,0.208314,96009.0,95990.0,0.22910365]
[1739454425529,0.156263,95992.0,95990.0,0.22910365]
[1739454425906,0.15626,95994.0,95990.0,0.22910365]
[1739454426108,0.208319,96007.0,95990.0,0.22910365]
[1739454426311,0.208314,96009.0,95990.0,0.22910365]
[1739454426748,0.15624,96006.0,95990.0,0.22910365]
[1739454426952,0.156237,96008.0,95990.0,0.23610365]
[1739454427155,0.156242,96005.0,95990.0,0.22910365]
[1739454427357,0.00122387,95991.0,95990.0,0.23610365]
[1739454427538,0.00122387,95991.0,95990.0,0.24310365]
[1739454427725,0.00022387,95991.0,95990.0,0.23610365]
[1739454428167,0.01424062,95991.0,95990.0,0.24210365]
[1739454428344,0.01424062,95991.0,95990.0,0.23510365]
[1739454428545,0.01324062,95991.0,95990.0,0.22910365]
[1739454428749,0.01324062,95991.0,95990.0,0.17930365]
[1739454429060,0.01424062,95991.0,95990.0,0.18630365]
[1739454429461,0.01424062,95991.0,95990.0,0.10950365]
[1739454429686,0.208348,95993.0,95990.0,0.014]
[1739454429887,0.156263,95992.0,95990.0,0.007]
[1739454430157,0.00022387,96001.0,95990.0,0.10250365]
[1739454430406,0.16940649,95992.0,95990.0,0.10950365]
[1739454430601,0.001,95991.0,95990.0,0.10950365]
[1739454431011,0.156257,95996.0,95990.0,0.10950365]
[1739454431226,0.156254,95998.0,95991.0,0.10250365]
[1739454431430,0.01336141,95997.0,95991.0,0.10250365]
[1739454431652,0.00022387,96001.0,95992.0,0.0789]
[1739454431854,0.01342705,95997.0,95993.0,0.10250365]
[1739454432055,0.00022387,96001.0,95993.0,0.10250365]
[1739454432056,0.156258,95995.0,95993.0,0.10250365]
[1739454432469,0.15669702,95995.0,95993.0,0.10250365]
[1739454432648,0.156264,95991.0,95990.0,0.013]
[1739454432887,0.156264,95991.0,95990.0,0.10950365]
[1739454433088,0.156264,95991.0,95990.0,0.11650365]
[1739454433261,0.156264,95991.0,95990.0,0.10950365]
[1739454433425,0.156264,95991.0,95990.0,0.10250365]
[1739454433813,0.156263,95992.0,95990.0,0.10250365]
[1739454434024,0.00043902,95995.0,95991.0,0.10250365]
[1739454434253,0.00043902,95995.0,95993.0,0.007]
[1739454434457,0.15669702,95995.0,95991.0,0.10250365]
[1739454434654,0.00043902,95995.0,95991.0,0.10250365]
[1739454434947,0.15669702,95995.0,95991.0,0.10250365]
[1739454435170,0.00043902,95995.0,95991.0,0.10250365]
[1739454435386,0.00043902,95995.0,95994.0,0.156259]
[1739454435592,0.00043902,95995.0,95994.0,0.25980425]
[1739454435807,0.00043902,95995.0,95994.0,0.25876265]
[1739454436642,0.00043902,95995.0,95994.0,0.33806265]
[1739454437032,0.00043902,95995.0,95994.0,0.34506265]
[1739454437414,0.00066289,95995.0,95994.0,0.34506265]
[1739454437614,0.00066289,95995.0,95994.0,0.55606265]
[1739454437866,0.00066289,95995.0,95994.0,0.57506265]
[1739454438179,0.00066289,95995.0,95994.0,0.58206265]
[1739454438539,0.00066289,95995.0,95994.0,0.57606265]
[1739454439366,0.00066289,95995.0,95994.0,0.56906265]
[1739454439731,0.00066289,95995.0,95994.0,0.57606265]
[1739454439935,0.00066289,95995.0,95994.0,0.59524067]
[1739454440136,0.00066289,95995.0,95994.0,0.61224067]
[1739454440381,0.00066289,95995.0,95994.0,0.60624067]
[1739454440909,0.00066289,95995.0,95994.0,0.61324067]
[1739454445563,0.00066289,95995.0,95994.0,0.59006265]
[1739454445765,0.00066289,95995.0,95994.0,0.60006265]
[1739454445961,0.00066289,95995.0,95994.0,0.59006265]
[1739454446169,0.00066289,95995.0,95994.0,0.60006265]
[1739454446801,0.00066289,95995.0,95994.0,0.59006265]
[1739454447812,0.00066289,95995.0,95994.0,0.60006265]
[1739454448562,0.00066289,95995.0,95994.0,0.58006265]
[1739454448780,0.00066289,95995.0,95994.0,0.12350365]
[1739454449853,0.00066289,95995.0,95994.0,0.27976265]
[1739454450032,0.00066289,95995.0,95994.0,0.25886925]
[1739454450208,0.00066289,95995.0,95994.0,0.26586925]
[1739454450407,0.00066289,95995.0,95994.0,0.27086925]
[1739454450864,0.00066289,95995.0,95994.0,0.27286925]
[1739454451098,0.00066289,95995.0,95994.0,0.25886925]
[1739454452369,0.00066289,95995.0,95994.0,0.26586925]
[1739454452581,0.00066289,95995.0,95994.0,0.27286925]
[1739454452800,0.00066289,95995.0,95994.0,0.26586925]
[1739454453000,0.00066289,95995.0,95994.0,0.42286925]
[1739454453441,0.00066289,95995.0,95994.0,0.51956925]
[1739454453655,0.00066289,95995.0,95994.0,0.52956925]
[1739454454091,0.00066289,95995.0,95994.0,0.53956925]
[1739454454303,0.00066289,95995.0,95994.0,0.59968819]
[1739454454720,0.00058004,95995.0,95994.0,0.59968819]
[1739454454933,0.00058004,95995.0,95994.0,0.64548819]
[1739454455974,0.00058004,95995.0,95994.0,0.61882152]
[1739454459073,0.00058004,95995.0,95994.0,0.61182152]
[1739454459295,0.00058004,95995.0,95994.0,0.61882152]
[1739454459706,0.00058004,95995.0,95994.0,0.61182152]
[1739454459862,4e-08,95995.0,95994.0,0.61882152]
[1739454460047,4e-08,95995.0,95994.0,0.61182152]
[1739454460556,4e-08,95995.0,95994.0,0.61882152]
[1739454460764,4e-08,95995.0,95994.0,0.60482152]
[1739454462003,4e-08,95995.0,95994.0,0.61182152]
[1739454462430,4e-08,95995.0,95994.0,0.61882152]
[1739454463836,4e-08,95995.0,95994.0,0.58482152]
[1739454464040,4e-08,95995.0,95994.0,0.59182152]
[1739454464502,4e-08,95995.0,95994.0,0.5137218]
[1739454464973,4e-08,95995.0,95994.0,0.49290258]
[1739454465221,4e-08,95995.0,95994.0,0.49990258]
[1739454465469,4e-08,95995.0,95994.0,0.38920258]
[1739454465719,4e-08,95995.0,95994.0,0.08294358]
[1739454465960,4e-08,95995.0,95994.0,0.09694358]
[1739454466211,4e-08,95995.0,95994.0,0.23920258]
[1739454467466,4e-08,95995.0,95994.0,0.24620258]
[1739454468298,4e-08,95995.0,95994.0,0.23920258]
[1739454468478,4e-08,95995.0,95994.0,0.24620258]
[1739454468829,4e-08,95995.0,95994.0,0.23920258]
[1739454469264,4e-08,95995.0,95994.0,0.24620258]
[1739454473209,4e-08,95995.0,95994.0,0.23220258]
[1739454473554,4e-08,95995.0,95994.0,0.23920258]
[1739454473928,4e-08,95995.0,95994.0,0.23220258]
[1739454474740,4e-08,95995.0,95994.0,0.23920258]
[1739454475342,4e-08,95995.0,95994.0,0.24620258]
[1739454475737,4e-08,95995.0,95994.0,0.23920258]
[1739454476157,4e-08,95995.0,95994.0,0.39620258]
[1739454476365,4e-08,95995.0,95994.0,0.41920258]
[1739454476992,4e-08,95995.0,95994.0,0.46159958]
[1739454477198,4e-08,95995.0,95994.0,0.53679958]
[1739454478241,4e-08,95995.0,95994.0,0.59199958]
[1739454478499,4e-08,95995.0,95994.0,0.58199958]
[1739454478955,4e-08,95995.0,95994.0,0.56499958]
[1739454479172,4e-08,95995.0,95994.0,0.59630193]
[1739454479648,4e-08,95995.0,95994.0,0.60330193]
[1739454480393,4e-08,95995.0,95994.0,0.59330193]
[1739454480649,4e-08,95995.0,95994.0,0.60330193]
[1739454482743,4e-08,95995.0,95994.0,0.43990193]
[1739454482953,4e-08,95995.0,95994.0,0.40870493]
[1739454483184,4e-08,95995.0,95994.0,0.38740258]
[1739454483380,4e-08,95995.0,95994.0,0.23740258]
[1739454486273,4e-08,95995.0,95994.0,0.38740258]
[1739454493497,4e-08,95995.0,95994.0,0.08114358]
[1739454493498,0.15625804,95995.0,95994.0,0.08114358]
[1739454493685,4e-08,95995.0,95994.0,0.08114358]
[1739454494310,4e-08,95995.0,95994.0,0.07414358]
[1739454494512,4e-08,95995.0,95994.0,0.22340258]
[1739454494723,4e-08,95995.0,95994.0,0.23040258]
[1739454494932,4e-08,95995.0,95994.0,0.23740258]
[1739454495350,4e-08,95995.0,95994.0,0.23040258]
[1739454495524,4e-08,95995.0,95994.0,0.22840258]
[1739454495726,4e-08,95995.0,95994.0,0.40140258]
[1739454495951,4e-08,95995.0,95994.0,0.41840258]
[1739454496177,4e-08,95995.0,95994.0,0.49792873]
[1739454496561,4e-08,95995.0,95994.0,0.50792873]
[1739454496956,4e-08,95995.0,95994.0,0.50292873]
[1739454497116,4e-08,95995.0,95994.0,0.49592873]
[1739454497322,4e-08,95995.0,95994.0,0.50992873]
[1739454497631,4e-08,95995.0,95994.0,0.52394499]
[1739454498283,4e-08,95995.0,95994.0,0.53094499]
[1739454501797,4e-08,95995.0,95994.0,0.47684499]
[1739454502416,4e-08,95995.0,95994.0,0.45984499]
[1739454502658,4e-08,95995.0,95994.0,0.47684499]
[1739454503384,4e-08,95995.0,95994.0,0.48384499]
[1739454503790,2.391e-05,96001.0,96000.0,0.01]
[1739454503992,0.00015555,96001.0,96000.0,0.47522107]
[1739454504164,0.00015555,96001.0,96000.0,0.4741798]
[1739454504610,0.00015555,96001.0,96000.0,0.4841798]
[1739454504831,5.5e-07,96001.0,96000.0,0.4841798]
[1739454505035,5.5e-07,96001.0,96000.0,0.4911798]
[1739454505213,5.5e-07,96001.0,96000.0,0.5811798]
[1739454507455,5.5e-07,96001.0,96000.0,0.6278798]
[1739454507788,5.5e-07,96001.0,96000.0,0.66839526]
[1739454508035,0.12532369,96061.0,96024.0,0.0862]
[1739454508252,0.00013222,96056.0,96037.0,0.10250365]
[1739454508423,0.15629122,96056.0,96048.0,0.15617]
[1739454508617,0.00013222,96056.0,96052.0,0.156164]
[1739454508823,0.00013222,96056.0,96053.0,0.25866665]
[1739454509230,0.00113222,96056.0,96054.0,0.156161]
[1739454509434,0.00113222,96056.0,96055.0,0.10354463]
[1739454509635,0.00113222,96056.0,96055.0,0.10250365]
[1739454510606,0.00013222,96056.0,96055.0,0.10250365]
[1739454510928,0.00213222,96056.0,96055.0,0.10250365]
[1739454511396,0.00213222,96056.0,96055.0,0.10850365]
[1739454511596,0.00113222,96056.0,96055.0,0.10850365]
[1739454512819,0.15729022,96056.0,96055.0,0.10850365]
[1739454513051,0.15729022,96056.0,96055.0,0.11150365]
[1739454515171,0.00113222,96056.0,96055.0,0.11150365]
[1739454515741,0.15729022,96056.0,96055.0,0.11150365]
[1739454516308,0.15729022,96056.0,96055.0,0.009]
[1739454519319,0.15729022,96056.0,96055.0,0.11150365]
[1739454520299,0.00113222,96056.0,96055.0,0.11150365]
[1739454520928,0.15729022,96056.0,96055.0,0.11150365]
[1739454521067,0.15729022,96056.0,96055.0,0.11161015]
[1739454521267,0.00113222,96056.0,96055.0,0.11161015]
[1739454521895,0.15729022,96056.0,96055.0,0.11161015]
[1739454522102,0.00113222,96056.0,96055.0,0.11161015]
[1739454522587,0.00113222,96056.0,96055.0,0.26777015]
[1739454523838,0.00113222,96056.0,96055.0,0.44077015]
[1739454524623,0.00013222,96056.0,96055.0,0.43477015]
[1739454525026,0.00013222,96056.0,96055.0,0.44177015]
[1739454525257,0.00013222,96056.0,96055.0,0.43177015]
[1739454525428,0.00013222,96056.0,96055.0,0.43877015]
[1739454525629,0.00013222,96056.0,96055.0,0.44577015]
[1739454526037,0.00013222,96056.0,96055.0,0.43877015]
[1739454526291,0.00013222,96056.0,96055.0,0.44577015]
[1739454526689,0.00013222,96056.0,96055.0,0.43877015]
[1739454527264,0.00013222,96056.0,96055.0,0.44577015]
[1739454527936,0.00013222,96056.0,96055.0,0.45277015]
[1739454528391,0.00013222,96056.0,96055.0,0.44577015]